Cogmind - Beta 14 @@@ ROGUE MODE // 2024.11.18 @ 16:00:27 Player: Zeldest Result: Destroyed by C-57 Dissector with Dual-blade Saw Performance ------------- Evolutions (8) 4000 Regions Visited (11) 2200 Robots Destroyed (16) 80 Value Destroyed (379) 379 Prototype IDs (1) 20 Alien Tech Used (0) 0 Bonus (500) 500 TOTAL SCORE: 7179 Bonus ------- Entered DSFs 500 Cogmind --------- Core Integrity 0/1450 Matter 277/300 Energy 99/100 System Corruption 0% Temperature Cool (0) Movement Core (50) Location -2/Research Parts ------- > --- POWER (3) -------- (None) > --- PROPULSION (10) -- (None) > --- UTILITY (8) ------ (None) > --- WEAPON (2) ------- (None) > --- INVENTORY (5) ---- Antimatter Reactor Antimatter Reactor Peak State ------------ > --- POWER ------------ Micro Fission Core Micro Fission Core Antimatter Reactor > --- PROPULSION ------- VTOL Module VTOL Module VTOL Module VTOL Module VTOL Module Advanced Surge Thruster Advanced Surge Thruster Advanced Surge Thruster Advanced Surge Thruster > --- UTILITY ---------- Advanced Sensor Array Improved Terrain Scanner Advanced Terrain Scan Processor Seismic Detector Improved Transmission Jammer ECM Suite > --- WEAPON ----------- Quantum Rifle > --- INVENTORY -------- Antimatter Reactor Flight Unit [Rating: 85] Favorites ----------- Power Micro Fission Core Engine Ion Engine Power Core Micro Fission Core Reactor Antimatter Reactor Propulsion VTOL Module Flight Unit VTOL Module Utility ECM Suite Device ECM Suite Processor Advanced Terrain Scan Processor Weapon Small Laser Energy Gun Small Laser Ballistic Gun Light Assault Rifle Ballistic Cannon Mass Driver Build | -11 -10 -9 -8 -8 -7 -6 -5 -4 -4 -3 -2 ------- Run | Yrd Mat Mat Mat Sto Fac Fac Fac Fac DSF Res Res Slots Evolved 16 | . . 2 2 . 2 2 2 2 . 2 2 Power 2 | . . . . . 1 . . . . 1 . Propulsion 8 | . . 1 1 . 1 2 1 . . 1 1 Utility 6 | . . 1 1 . . . 1 2 . . 1 Weapon . | . . . . . . . . . . . . Parts Attached 62 | 3 9 13 1 1 5 3 8 2 6 6 5 Power 18 | 1 3 2 . 1 . 1 3 . 6 1 . Engine 8 | 1 3 2 . 1 . 1 . . . . . Core 7 | . . . . . . . 3 . 4 . . Reactor 3 | . . . . . . . . . 2 1 . Propulsion 21 | . 3 6 1 . 1 2 . . . 4 4 Treads . | . . . . . . . . . . . . Leg . | . . . . . . . . . . . . Wheel . | . . . . . . . . . . . . Hover . | . . . . . . . . . . . . Flight 21 | . 3 6 1 . 1 2 . . . 4 4 Utility 11 | . 1 1 . . 4 . 3 2 . . . Device 10 | . 1 1 . . 3 . 3 2 . . . Storage . | . . . . . . . . . . . . Processor 1 | . . . . . 1 . . . . . . Hackware . | . . . . . . . . . . . . Protection . | . . . . . . . . . . . . Artifact . | . . . . . . . . . . . . Weapon 12 | 2 2 4 . . . . 2 . . 1 1 Energy Gun 10 | 2 2 3 . . . . 1 . . 1 1 Energy Cannon . | . . . . . . . . . . . . Ballistic Gun 1 | . . 1 . . . . . . . . . Ballistic Cannon 1 | . . . . . . . 1 . . . . Launcher . | . . . . . . . . . . . . Special Weapon . | . . . . . . . . . . . . Impact Weapon . | . . . . . . . . . . . . Slashing Weapon . | . . . . . . . . . . . . Piercing Weapon . | . . . . . . . . . . . . Special Melee Weapon . | . . . . . . . . . . . . Unidentified Prototypes 1 | . . . . 1 . . . . . . . Parts Lost 31 | . 6 4 . 2 . . 1 . 2 1 15 Power 4 | . 2 1 . . . . . . . . 1 Propulsion 12 | . 2 . . . . . . . 1 1 8 Utility 8 | . . 1 . . . . 1 . 1 . 5 Weapon 7 | . 2 2 . 2 . . . . . . 1 Highest Loss Streak 15 | . 3 4 . 2 . . 1 . 2 1 15 To Critical Strikes . | . . . . . . . . . . . . Average Slot Usage (%) 64 | . 51 39 72 66 67 86 84 86 84 79 62 Engine 5 | . 12 5 9 9 7 13 2 . . . . Core 3 | . . . . . . . 7 10 9 9 6 Flight 24 | . . 10 36 36 38 46 41 36 34 36 30 Device 15 | . 11 6 9 9 17 20 23 29 29 23 17 Processor 2 | . . . . . 3 6 5 5 5 4 3 Energy Gun 9 | . 26 11 9 6 . . 2 5 5 4 3 Ballistic Gun 1 | . . 6 9 6 . . . . . . . Peak Build Rating 85 | 3 6 10 12 15 25 33 56 59 62 85 78 Average Rating 29 | 2 3 3 12 13 20 29 45 58 55 68 62 On Entrance 28 | . 3 4 10 12 13 25 33 51 59 50 77 Naked Turns 32 | . . 4 . . . . . . . . 28 Heaviest Build 46 | 6 10 8 8 11 12 21 28 24 46 22 22 Greatest Support 36 | 3 8 12 16 16 20 28 28 24 28 28 36 Greatest Overweight (x) 3 | 1 3 2 . . . . . . 1 . . Average Overweight (x) . | . 1 . . . . . . . . . . Largest Inventory Capacity 5 | 5 5 5 5 5 5 5 5 5 5 5 5 Average Capacity 5 | 5 5 5 5 5 5 5 5 5 5 5 5 Most Carried 5 | . 5 5 4 5 5 4 5 4 5 5 2 Average Carried 2 | . 1 2 4 4 4 3 4 3 2 2 2 Final Capacity 5 | 5 5 5 5 5 5 5 5 5 5 5 5 Final Carried 5 | . 2 5 4 5 5 3 4 3 2 3 2 Class Distribution -------------------- 37% | Mutant 28% | Infiltrator-Scout 18% | Sprinter 13% | Scout Dominant Class ---------------- Mutant | -10/Materials Mutant | -9/Materials Mutant | -8/Materials Sprinter | -8/Storage Sprinter | -7/Factory Sprinter | -6/Factory Scout | -5/Factory Infiltrator-Scout | -4/Factory Infiltrator-Scout | -4/DSF Infiltrator-Scout | -3/Research Infiltrator-Scout | -2/Research Resources | -11 -10 -9 -8 -8 -7 -6 -5 -4 -4 -3 -2 ----------- Run | Yrd Mat Mat Mat Sto Fac Fac Fac Fac DSF Res Res Matter Collected 674 | 113 190 143 . . 60 . 100 . . 68 . Remotely . | . . . . . . . . . . . . Salvage Created 526 | . 236 290 . . . . . . . . . Parts 26 | . 8 18 . . . . . . . . . Haulers Intercepted 1 | . . 1 . . . . . . . . . Recyclers Shooed . | . . . . . . . . . . . . Parts Field Recycled . | . . . . . . . . . . . . Retrieved Matter . | . . . . . . . . . . . . Parts Self-Destructed . | . . . . . . . . . . . . Prevented . | . . . . . . . . . . . . Kills | -11 -10 -9 -8 -8 -7 -6 -5 -4 -4 -3 -2 ------- Run | Yrd Mat Mat Mat Sto Fac Fac Fac Fac DSF Res Res Combat Hostiles Destroyed 14 | . 7 7 . . . . . . . . . Guns 13 | . 6 7 . . . . . . . . . Classes Destroyed 5 | . 2 3 . . . . . . . . . Worker 1 | . . 1 . . . . . . . . . Hauler 1 | . . 1 . . . . . . . . . Swarmer 6 | . 3 3 . . . . . . . . . Grunt 7 | . 4 3 . . . . . . . . . Sentry 1 | . . 1 . . . . . . . . . Best Kill Streak 4 | . 2 4 . . . . . . . . . Combat Bots Only 4 | . 2 4 . . . . . . . . . Max Kills in Single Turn 1 | . 1 1 . . . . . . . . . Gunslinging . | . . . . . . . . . . . . Exploded . | . . . . . . . . . . . . Melee . | . . . . . . . . . . . . Uniques/NPCs Destroyed . | . . . . . . . . . . . . Combat | -11 -10 -9 -8 -8 -7 -6 -5 -4 -4 -3 -2 -------- Run | Yrd Mat Mat Mat Sto Fac Fac Fac Fac DSF Res Res Hostile Shots Fired 338 | . 64 68 . 29 . 1 1 . 7 11 157 Missed 127 | . 16 19 . 16 . 1 . . 4 5 66 Damage Taken 3971 | . 538 579 . 197 . . 18 . 139 140 2360 Core 2081 | . 190 290 . 70 . . . . 29 22 1480 Absorbed by Shields . | . . . . . . . . . . . . Core Remaining (%) 81 | 100 24 27 . 87 100 100 100 . 97 98 . Volleys Fired 61 | . 33 27 . . . . . . . . 1 Largest 2 | . 2 2 . . . . . . . . 1 Hottest 94 | . 90 80 . . . . . . . . 94 Shots Fired 110 | . 60 49 . . . . . . . . 1 Gun 110 | . 60 49 . . . . . . . . 1 Cannon . | . . . . . . . . . . . . Launcher . | . . . . . . . . . . . . Special . | . . . . . . . . . . . . Kinetic 18 | . . 18 . . . . . . . . . Thermal 92 | . 60 31 . . . . . . . . 1 Explosive . | . . . . . . . . . . . . Electromagnetic . | . . . . . . . . . . . . Robot Hit Streak 8 | . 8 7 . . . . . . . . . Robot Miss Streak 4 | . 3 4 . . . . . . . . 1 Penetration Max . | . . . . . . . . . . . . Secondary Targets 3 | . . 3 . . . . . . . . . Max Gunslinging Chain 1 | . . 1 . . . . . . . . . Shots Hit Robots 71 | . 41 30 . . . . . . . . . Core Hits 25 | . 11 13 . . . . . . . . 1 Critical Kills . | . . . . . . . . . . . . Critical Parts Destroyed . | . . . . . . . . . . . . Critical Strikes 1 | . 1 . . . . . . . . . . Burn 1 | . 1 . . . . . . . . . . Melee Attacks . | . . . . . . . . . . . . Impact . | . . . . . . . . . . . . Slashing . | . . . . . . . . . . . . Piercing . | . . . . . . . . . . . . Sneak Attacks . | . . . . . . . . . . . . Combat Hostiles . | . . . . . . . . . . . . Follow-up Attacks . | . . . . . . . . . . . . Damage Inflicted 884 | . 498 363 . . . . . . . . 23 Guns 807 | . 498 309 . . . . . . . . . Cannons . | . . . . . . . . . . . . Explosions 54 | . . 54 . . . . . . . . . Melee . | . . . . . . . . . . . . Ramming 23 | . . . . . . . . . . . 23 Kinetic 92 | . . 92 . . . . . . . . . Thermal 769 | . 498 271 . . . . . . . . . Explosive . | . . . . . . . . . . . . Electromagnetic . | . . . . . . . . . . . . Impact . | . . . . . . . . . . . . Slashing . | . . . . . . . . . . . . Piercing . | . . . . . . . . . . . . Highest Corruption 2 | . . . . 2 . . . . . . . Average Corruption 2 | . . . . 2 . . . . . . . Corruption Purged . | . . . . . . . . . . . . Corruption Blocked . | . . . . . . . . . . . . Overload Shots . | . . . . . . . . . . . . Overflow Damage 14 | . . 14 . . . . . . . . . Projectiles . | . . . . . . . . . . . . Explosions 14 | . . 14 . . . . . . . . . Melee . | . . . . . . . . . . . . Knockbacks . | . . . . . . . . . . . . Impact . | . . . . . . . . . . . . Kinetic . | . . . . . . . . . . . . Secondary . | . . . . . . . . . . . . Self-Inflicted Damage 84 | . . 73 . . . . . . . . 11 Shots 1 | . . 1 . . . . . . . . . Rammed 7 | . 2 . . . . . . . . . 5 Targets Rammed 7 | . 2 . . . . . . . . . 5 Kicked . | . . . . . . . . . . . . Crushed . | . . . . . . . . . . . . Highest Temperature 371 | . 262 36 . 12 4 36 371 108 . 171 288 Average Temperature 92 | . 116 11 . 10 2 23 142 41 . 59 81 Received Heat Transfer 615 | . 252 147 . 99 . . 9 . . . 108 Effects 7 | . 4 . . . . . 3 . . . . Interference 7 | . 4 . . . . . 3 . . . . Siege Activations . | . . . . . . . . . . . . Robots Corrupted . | . . . . . . . . . . . . Combat Hostiles . | . . . . . . . . . . . . Parts Fried . | . . . . . . . . . . . . Impact Corruptions . | . . . . . . . . . . . . Robots Melted 1 | . 1 . . . . . . . . . . Combat Hostiles 1 | . 1 . . . . . . . . . . Parts Melted 6 | . 6 . . . . . . . . . . Heat Transferred 1914 | . 1364 550 . . . . . . . . . Parts Sabotaged . | . . . . . . . . . . . . Parts Stolen . | . . . . . . . . . . . . Parts Stripped . | . . . . . . . . . . . . Power Chain Reactions . | . . . . . . . . . . . . Alert | -11 -10 -9 -8 -8 -7 -6 -5 -4 -4 -3 -2 ------- Run | Yrd Mat Mat Mat Sto Fac Fac Fac Fac DSF Res Res Peak Influence 371 | . 185 268 118 256 148 72 157 89 65 183 371 Initial 118 | . . 78 118 49 116 72 35 74 65 33 96 Average 114 | . 95 167 118 98 124 72 104 74 59 95 171 Maximum Alert Level 1 | . . 1 . 1 . . . . . . 1 Low Security (%) 92 | 100 100 57 100 94 100 100 100 100 100 100 83 Level 1 7 | . . 42 . 5 . . . . . . 16 Level 2 . | . . . . . . . . . . . . Level 3 . | . . . . . . . . . . . . Level 4 . | . . . . . . . . . . . . Level 5 . | . . . . . . . . . . . . High Security . | . . . . . . . . . . . . Max Security . | . . . . . . . . . . . . Squads Dispatched 13 | . 1 1 . 1 2 . 1 1 1 . 5 Investigation 4 | . 1 1 . . . . 1 . . . 1 Extermination . | . . . . . . . . . . . . Reinforcement 9 | . . . . 1 2 . . 1 1 . 4 Assault . | . . . . . . . . . . . . Garrison . | . . . . . . . . . . . . Intercept . | . . . . . . . . . . . . Searches Triggered . | . . . . . . . . . . . . Construction Impeded . | . . . . . . . . . . . . Haulers Reinforced . | . . . . . . . . . . . . Active Scanning Responses . | . . . . . . . . . . . . Cargo Convoy Interrupts . | . . . . . . . . . . . . Stealth | -11 -10 -9 -8 -8 -7 -6 -5 -4 -4 -3 -2 --------- Run | Yrd Mat Mat Mat Sto Fac Fac Fac Fac DSF Res Res Distress Signals 4 | . 3 . . 1 . . . . . . . Communications Jammed . | . . . . . . . . . . . . Distress Signals . | . . . . . . . . . . . . Times Spotted 102 | . 12 15 . 19 2 2 4 1 5 7 35 Peak Tracking Total 26 | . 3 7 . 18 2 4 3 1 4 7 26 Tactical Retreats 12 | . 3 . . 1 . . 2 . . 2 4 Traps | -11 -10 -9 -8 -8 -7 -6 -5 -4 -4 -3 -2 ------- Run | Yrd Mat Mat Mat Sto Fac Fac Fac Fac DSF Res Res Traps Triggered 7 | . 1 1 . 1 1 . . . 1 1 1 Indirectly . | . . . . . . . . . . . . Trap Hack Attempts . | . . . . . . . . . . . . Triggered . | . . . . . . . . . . . . Disarmed . | . . . . . . . . . . . . Reprogrammed . | . . . . . . . . . . . . Reused . | . . . . . . . . . . . . Traps Extracted . | . . . . . . . . . . . . Installed . | . . . . . . . . . . . . Triggered . | . . . . . . . . . . . . Machines | -11 -10 -9 -8 -8 -7 -6 -5 -4 -4 -3 -2 ---------- Run | Yrd Mat Mat Mat Sto Fac Fac Fac Fac DSF Res Res Machines Disabled 2 | . . 2 . . . . . . . . . Max in Single Turn 2 | . . 2 . . . . . . . . . Machines Repaired . | . . . . . . . . . . . . Machines Dismantled . | . . . . . . . . . . . . Machines Sabotaged . | . . . . . . . . . . . . Overloaded Fab Kills . | . . . . . . . . . . . . Hacking | -11 -10 -9 -8 -8 -7 -6 -5 -4 -4 -3 -2 --------- Run | Yrd Mat Mat Mat Sto Fac Fac Fac Fac DSF Res Res Machines Accessed 15 | . 1 . 1 3 2 . 5 1 . . 2 Terminals 12 | . 1 . 1 3 . . 5 1 . . 1 Fabricators . | . . . . . . . . . . . . Repair Stations . | . . . . . . . . . . . . Recycling Units . | . . . . . . . . . . . . Scanalyzers 1 | . . . . . 1 . . . . . . Garrison Access 2 | . . . . . 1 . . . . . 1 Total Hacks 33 | . 2 . 1 4 5 . 15 2 . . 4 Successful 13 | . . . 1 2 2 . 6 1 . . 1 Failed 20 | . 2 . . 2 3 . 9 1 . . 3 Catastrophic 3 | . . . . . 1 . 2 . . . . Database Lockouts . | . . . . . . . . . . . . Manual 15 | . 2 . 1 . . . 12 . . . . Terminals 25 | . 2 . 1 4 . . 15 2 . . 1 Fabricators . | . . . . . . . . . . . . Repair Stations . | . . . . . . . . . . . . Recycling Units . | . . . . . . . . . . . . Scanalyzers 2 | . . . . . 2 . . . . . . Garrison Access 6 | . . . . . 3 . . . . . 3 Terminal Hacks 7 | . . . 1 2 . . 2 1 . . 1 Part Schematic 1 | . . . 1 . . . . . . . . Open Door 2 | . . . . 2 . . . . . . . Open DSF 2 | . . . . . . . . 1 . . 1 Emergency Access Points 1 | . . . . . . . 1 . . . . Locate Traps 1 | . . . . . . . 1 . . . . Fabricator Hacks . | . . . . . . . . . . . . Repair Station Hacks . | . . . . . . . . . . . . Recycling Unit Hacks . | . . . . . . . . . . . . Scanalyzer 2 | . . . . . 2 . . . . . . Insert Component 1 | . . . . . 1 . . . . . . Analyze 1 | . . . . . 1 . . . . . . Garrison Access Hacks . | . . . . . . . . . . . . Unauthorized Hacks 4 | . . . . . . . 4 . . . . Terminals 4 | . . . . . . . 4 . . . . Assimilate 1 | . . . . . . . 1 . . . . Botnet 2 | . . . . . . . 2 . . . . Operators 1 | . . . . . . . 1 . . . . Fabricators . | . . . . . . . . . . . . Repair Stations . | . . . . . . . . . . . . Recycling Units . | . . . . . . . . . . . . Scanalyzers . | . . . . . . . . . . . . Garrison Access . | . . . . . . . . . . . . Data Cores Recovered . | . . . . . . . . . . . . Used . | . . . . . . . . . . . . Hacking Detections 11 | . 1 . . 2 2 . 5 . . . 1 Full Trace Events 2 | . . . . . . . 1 . . . 1 Feedback Events . | . . . . . . . . . . . . Feedback Blocked . | . . . . . . . . . . . . Robot Schematics Acquired . | . . . . . . . . . . . . Robots Built . | . . . . . . . . . . . . Authchips . | . . . . . . . . . . . . Time . | . . . . . . . . . . . . Total Robot Build Rating . | . . . . . . . . . . . . Part Schematics Acquired 2 | . . . 1 . 1 . . . . . . Parts Built . | . . . . . . . . . . . . Authchips . | . . . . . . . . . . . . Time . | . . . . . . . . . . . . Total Part Build Rating . | . . . . . . . . . . . . Parts Repaired . | . . . . . . . . . . . . Time . | . . . . . . . . . . . . Parts Recycled . | . . . . . . . . . . . . Recycled Matter . | . . . . . . . . . . . . Retrieved Matter . | . . . . . . . . . . . . Retrieved Components . | . . . . . . . . . . . . Parts Scanalyzed 1 | . . . . . 1 . . . . . . Part Schematics Acquired 1 | . . . . . 1 . . . . . . Parts Damaged . | . . . . . . . . . . . . Bothacking | -11 -10 -9 -8 -8 -7 -6 -5 -4 -4 -3 -2 ------------ Run | Yrd Mat Mat Mat Sto Fac Fac Fac Fac DSF Res Res Used RIF Installer . | . . . . . . . . . . . . Robots Hacked . | . . . . . . . . . . . . Non-combat . | . . . . . . . . . . . . Combat . | . . . . . . . . . . . . Robot Hacks Applied . | . . . . . . . . . . . . Relay Couplers Released . | . . . . . . . . . . . . Fabnet Peak Effective % . | . . . . . . . . . . . . Robots Rewired . | . . . . . . . . . . . . Allies Hacked . | . . . . . . . . . . . . Hacks Repelled . | . . . . . . . . . . . . Allies | -11 -10 -9 -8 -8 -7 -6 -5 -4 -4 -3 -2 -------- Run | Yrd Mat Mat Mat Sto Fac Fac Fac Fac DSF Res Res Total Allies 1 | . . . . . . . 1 . . . . Largest Group 1 | . . . . . . . 1 . . . . Highest-Rated Group 26 | . . . . . . . 26 . . . . Highest-Rated Ally 26 | . . . . . . . 26 . . . . Total Orders . | . . . . . . . . . . . . Ally Attacks . | . . . . . . . . . . . . Total Damage . | . . . . . . . . . . . . Kills . | . . . . . . . . . . . . Allies Corrupted . | . . . . . . . . . . . . Allies Melted . | . . . . . . . . . . . . Intel | -11 -10 -9 -8 -8 -7 -6 -5 -4 -4 -3 -2 ------- Run | Yrd Mat Mat Mat Sto Fac Fac Fac Fac DSF Res Res Robot Analysis Total . | . . . . . . . . . . . . Derelict Logs Recovered . | . . . . . . . . . . . . Drone Launches . | . . . . . . . . . . . . Drone Recoveries . | . . . . . . . . . . . . Exploration | -11 -10 -9 -8 -8 -7 -6 -5 -4 -4 -3 -2 ------------- Run | Yrd Mat Mat Mat Sto Fac Fac Fac Fac DSF Res Res Turns Passed 1588 | 45 379 184 10 133 138 13 205 48 46 150 237 Spaces Moved 2937 | 47 199 166 33 336 494 44 545 125 122 430 396 Core 398 | 47 197 90 . . . . . . . . 64 Treads . | . . . . . . . . . . . . Legs . | . . . . . . . . . . . . Wheels . | . . . . . . . . . . . . Hover . | . . . . . . . . . . . . Flight 2539 | . 2 76 33 336 494 44 545 125 122 430 332 Fastest Speed 10 | 50 37 29 26 26 24 17 17 20 17 11 10 Average Speed 30 | 87 131 46 26 26 24 21 18 20 22 15 19 Slowest Speed 200 | 100 200 150 26 26 24 23 20 20 100 20 50 Overloaded Moves . | . . . . . . . . . . . . Propulsion Burnouts . | . . . . . . . . . . . . Robots Hopped 35 | . . . . 10 3 . 5 . . 8 9 Cave-ins Triggered . | . . . . . . . . . . . . Exploration Rate (%) 25 | 4 25 22 8 79 15 2 16 4 91 17 23 Regions Visited 11 Branch Regions 1 Pre-discovered Areas . | . . . . . . . . . . . . Known Exits Taken 1 | . . . . . . . . 1 . . . Unknown Exits Taken 9 | 1 1 1 1 1 1 1 1 . . 1 . Scrap Searched . | . . . . . . . . . . . . Spaces Dug . | . . . . . . . . . . . . Terrain Destroyed 16 | . . 16 . . . . . . . . . Melee . | . . . . . . . . . . . . Projectile . | . . . . . . . . . . . . AOE 16 | . . 16 . . . . . . . . . Terrain Rammed . | . . . . . . . . . . . . Walls Destroyed . | . . . . . . . . . . . . Machines Disabled . | . . . . . . . . . . . . Actions | -11 -10 -9 -8 -8 -7 -6 -5 -4 -4 -3 -2 --------- Run | Yrd Mat Mat Mat Sto Fac Fac Fac Fac DSF Res Res Total 3458 | 49 253 226 33 370 508 46 641 147 139 503 543 Wait 362 | . 4 6 . 41 . . 86 20 5 55 145 Move 2860 | 46 198 165 32 315 487 43 535 125 121 413 380 Hop 32 | . . . . 10 3 . 4 . . 8 7 Pick Up 32 | . 7 11 . 2 3 . 4 . 2 3 . Fast Attach 17 | 3 1 . . . 3 1 2 1 . 2 4 Attach 27 | . 6 10 1 . 1 2 2 1 . 3 1 Detach 5 | . . 3 . . . . . . . 2 . Swap 18 | . 2 3 . 1 1 . 4 . 6 1 . Drop 14 | . . 1 . 1 2 . 4 . 5 1 . Fire 61 | . 33 27 . . . . . . . . 1 Melee . | . . . . . . . . . . . . Ram 7 | . 2 . . . . . . . . . 5 Kick . | . . . . . . . . . . . . Crush . | . . . . . . . . . . . . Escape Stasis 23 | . . . . . 8 . . . . 15 . Rewire . | . . . . . . . . . . . . Trap . | . . . . . . . . . . . . Miscellaneous . | . . . . . . . . . . . . Route ------- -11/Scrapyard -10/Materials -9/Materials -8/Materials -8/Storage -7/Factory -6/Factory -5/Factory -4/Factory -4/DSF -3/Research -2/Research History --------- Turn | Location | Event 5 | -11/Scrapyard | Discovered new exit (range 15) 46 | -11/Scrapyard | Entered Materials 267 | -10/Materials | Core integrity fell below 50% 298 | -10/Materials | Lost 3 parts (1p2w) 330 | -10/Materials | Build established: Mutant 383 | -10/Materials | Discovered new exit (range 15) 425 | -10/Materials | Entered another Materials area 425 | -9/Materials | Evolved 2 slots: Propulsion x1, Utility x1 526 | -9/Materials | Core integrity fell below 50% 530 | -9/Materials | Lost 4 parts (1p1u2w) 606 | -9/Materials | Discovered new exit (range 11) 609 | -9/Materials | Entered another Materials area 609 | -8/Materials | Evolved 2 slots: Propulsion x1, Utility x1 611 | -8/Materials | Discovered new exit (range 14) 619 | -8/Materials | Entered Storage 748 | -8/Storage | Discovered new exit (range 16) 752 | -8/Storage | Entered Factory 752 | -7/Factory | Evolved 2 slots: Power x1, Propulsion x1 888 | -7/Factory | Discovered new exit (range 7) 890 | -7/Factory | Entered another Factory area 890 | -6/Factory | Evolved 2 slots: Propulsion x2 897 | -6/Factory | Discovered new exit (range 11) 903 | -6/Factory | Entered another Factory area 903 | -5/Factory | Evolved 2 slots: Propulsion x1, Utility x1 1104 | -5/Factory | Discovered new exit (range 15) 1108 | -5/Factory | Entered another Factory area 1108 | -4/Factory | Evolved 2 slots: Utility x2 1156 | -4/Factory | Identified exit to DSF 1156 | -4/Factory | Entered DSF 1196 | -4/DSF | Additional patrols routed to DSF 1200 | -4/DSF | Discovered new exit (range 14) 1202 | -4/DSF | Entered Research 1202 | -3/Research | Evolved 2 slots: Power x1, Propulsion x1 1350 | -3/Research | Discovered new exit (range 8) 1352 | -3/Research | Entered another Research area 1352 | -2/Research | Evolved 2 slots: Propulsion x1, Utility x1 1360 | -2/Research | Spotted B-90 Cyclops 1392 | -2/Research | Build established: Infiltrator-Scout 1517 | -2/Research | Spotted B-90 Cyclops 1560 | -2/Research | Core integrity fell below 50% 1581 | -2/Research | Core integrity fell below 20% 1587 | -2/Research | Lost 15 parts (1p8n5u1w) 1589 | -2/Research | Destroyed by C-57 Dissector with Dual-blade Saw Last Messages --------------- 01556_ Slug penetrates Wall. 01556_ Imp. Transmission Jammer destroyed. 01561_ Adv. Terrain Scan Processor severed. 01561_ Slammed into K-01 Serf. 01571_ Knocked back. 01571_ K-01 Serf destroyed. 01571_ C-57 Dissector knocked back. 01571_ K-01 Serf knocked back. 01572_ The unstable cave ceiling collapses. 01572_ K-01 Serf collects debris. 01576_ O-24 Administrator: "IFF HANDSHAKE FAILED. SECURING TERMINAL." 01580_ ALERT: Hostiles spotted, dispatching reinforcements to Terminal R009. 01580_ Slammed into G-73 Enforcer. 01581_ Connecting with Garrison Access... 01581_ ALERT: Suspicious activity at Garrison Access R001. Dispatching Investigation squad. 01581_ Garrison Access under remote control. 01581_ Slammed into C-57 Dissector. 01584_ Critical hit (Burn: +37). Map ----- +----------------------------------------------------+ | ?????????????????????????????????????????????????? | | ?????????????????????????????????????????????????? | | ?????????????????????????????????????????????????? | | ?????????????????????????????????????????????????? | | ?????????????????????????????????????????????????? | | ?????????????????????????????????????????????????? | | ?????????????????????????????????????????????????? | | ?????????????????????????????????????????????????? | | ?????????????????????????????????????????????????? | | ?????????????????????????????????????????????????? | | ?????????????????????????????????????????????????? | | ?????????????????????????????????????????????????? | | ?????????????????????????????????????????????????? | | ?????????????????????????????????????????????????? | | ?????????????????????????????????????????????????? | | ?????????????????????????????????????????????????? | | ?????????????????????????????????????????????????? | | ?????????????????????????????????????????????????? | | ?????????????????????????????????????????????????? | | ?????????????????????????????????????????????????? | | ???????????????????????????????????? k???????????? | | ?????????????????????????????????? " ???????????? | | ?????????????????############### "Y???????????? | | ?????????????????# """??????????? | | ?????????????????# ????????? | | ?????????????????# u@ ????????? | | ?????????????????+ c ????????? | | ?????????????????# ################???????????? | | ?????????????????# # """G""" !#??????????????? | | ???????+########## # """ """ #??????????????? | | ?????? # #??????????????? | | ?????? # #??????????????? | | ?????? + #??????????????? | | ?????? # #??????????????? | | ???????#######+### # """ #??????????????? | | ????????? ??????# # """ #??????????????? | | ?????????? ?????# # """ #??????????????? | | ?????????? ????# # """ #??????????????? | | ??????????""" ???# # """ #??????????????? | | ??????????"T ??# # ? #??????????????? | | ???????# """ ?# # ] ? #??????????????? | | ???????+ # ##########?????????????????? | | ???????# ! =##?????????????????????????? | | ?????????######## % #?????????????????????????? | | ????????????????# ! #?????????????????????????? | | ????????????????# ##????????????????? #??????? | | ????????????????# #????????????????? #??????? | | ????????????????# #????????##+###### #??????? | | ????????????????# #????????# +??????? | | ????????????????# #????????# #??????? | +----------------------------------------------------+ Best States ------------- Heat Dissipation 49 Energy Generation 38 Energy Capacity 375 Matter Stores 300 Matter Capacity 300 Sight Range 16 Robot Scan Range 16 Terrain Scan Range 16 Terrain Scan Density 210 ECM Strength 1 Jamming Range 14 Power Amplification 30 Evasion (%) 67 Item Schematics ----------------- VTOL Module | -8/Materials | Hacked Drone Bay | -7/Factory | Scanalyzed Robot Schematics ------------------ None Fabricated ------------ Nothing Alien Tech Used ----------------- None Achievements -------------- Can't Catch Me Cya! Hunted Omniscient Cartographer Speed Demon Challenges ------------ None Game ------ Seed SmallShieldPrototype Manual? 0 Play Time 01:00:30 Cumulative 46.5 hours Start 2024.11.18 @ 15:02:01 End 2024.11.18 @ 16:00:27 Sessions 1 Manual Loads 0 Difficulty Rogue Special Mode None Game No. 86 Rogue 86 Adventurer 0 Explorer 0 Win Type - Total 0 Types 0/0/0/0/0/0/0/0/0 Lore% 15 Gallery% 33 Achievement% 30 Wizard Run 0 Options --------- Layout 0 ASCII 0 Keyboard 1 Movement Numpad Keybinds 0 Fullscreen 1 Font 18/SmallcapsGlow Map View 76x50 Zoom Use 0% Tactical HUD 1 Map Filters NONE Filters NONE Steam 1 RUN: e72d5927-45b9-4e3c-9604-60c31070eba7